bitfinex/quotes_SOLUSD_20251118
["timestamp","ask_amount","ask_price","bid_price","bid_amount"]
[1763441157607,18.12096,134.01,133.96,0.68]
[1763441157811,18.12096,134.01,133.98,6.86178812]
[1763441158188,18.79096,134.01,133.96,15.91192358]
[1763441158708,18.79096,134.01,133.97,0.68]
[1763441158924,0.67,134.0,133.96,8.37013546]
[1763441159094,6.86178812,134.0,133.97,0.68]
[1763441159503,7.53178812,133.99,133.95,26.49109546]
[1763441159715,6.86178812,134.0,133.95,18.80096]
[1763441159884,6.86178812,134.0,133.95,25.66274812]
[1763441160208,7.53178812,134.0,133.96,0.68]
[1763441160591,0.67,133.99,133.94,9.04013546]
[1763441160786,6.86178812,134.0,133.94,9.04013546]
[1763441160787,0.81216157,134.03,133.96,6.86178812]
[1763441161011,0.67,134.06,133.98,18.12096]
[1763441161187,6.86178812,134.03,133.98,8.37013546]
[1763441161387,6.86178812,134.0,133.96,8.37013546]
[1763441161613,6.86178812,133.99,133.96,8.37013546]
[1763441161912,6.86178812,133.99,133.94,24.98274812]
[1763441162114,0.67,133.99,133.95,0.68]
[1763441162416,6.86178812,133.99,133.95,0.68]
[1763441162613,6.86178812,133.98,133.93,9.05013546]
[1763441162791,6.86178812,133.98,133.94,0.68]
[1763441162989,6.86178812,133.97,133.94,0.68]
[1763441163218,7.53178812,133.97,133.92,9.05013546]
[1763441163516,18.12096,133.99,133.94,6.86178812]
[1763441163724,24.98274812,133.99,133.94,15.23192358]
[1763441163907,18.12096,133.99,133.95,7.54178812]
[1763441164228,24.98274812,133.99,133.95,0.68]
[1763441164812,6.86178812,133.98,133.95,0.68]
[1763441165809,24.98274812,134.01,133.96,6.86178812]
[1763441166093,6.86178812,134.0,133.97,0.68]
[1763441166398,6.86178812,133.99,133.95,8.37013546]
[1763441166596,6.86178812,133.99,133.93,9.05013546]
[1763441166597,6.86178812,133.96,133.93,9.05013546]
[1763441166798,6.86178812,133.95,133.93,0.68]
[1763441167114,6.86178812,133.96,133.94,0.68]
[1763441167496,6.86178812,133.95,133.94,0.68]
[1763441167712,6.86178812,133.95,133.91,46.5958177]
[1763441167918,18.79096,133.98,133.92,8.66013546]
[1763441168096,6.86178812,133.97,133.92,15.52192358]
[1763441168292,6.86178812,133.96,133.91,53.00760582]
[1763441168498,6.86178812,133.97,133.93,0.68]
[1763441168700,18.12096,133.98,133.91,15.91192358]
[1763441168701,7.53178812,133.96,133.91,15.91192358]
[1763441168900,6.86178812,133.95,133.91,9.05013546]
[1763441169113,6.86178812,133.95,133.91,8.37013546]
[1763441169296,6.86178812,133.95,133.92,0.68]
[1763441169618,6.86178812,133.95,133.91,0.68]
[1763441169822,24.98274812,133.97,133.92,16.65061581]
[1763441170008,18.12096,133.97,133.93,7.54178812]
[1763441170404,18.12096,133.97,133.96,6.86178812]
[1763441170833,18.12096,133.97,133.95,6.86178812]
[1763441170834,0.67,133.97,133.95,6.86178812]
[1763441171034,0.67,133.96,133.94,6.86178812]
[1763441171323,18.79096,133.96,133.94,6.86178812]
[1763441172019,18.79096,133.96,133.93,6.86178812]
[1763441172214,0.82216157,133.95,133.89,9.07013546]
[1763441172618,0.68,133.95,133.93,6.86178812]
[1763441172995,0.14216157,133.94,133.88,8.37013546]
[1763441173201,18.12096,133.9,133.88,6.86178812]
[1763441174036,0.68,133.94,133.89,7.56178812]
[1763441174198,18.12096,133.94,133.92,6.86178812]
[1763441174401,18.12096,133.94,133.91,6.86178812]
[1763441174402,18.80096,133.93,133.91,6.86178812]
[1763441174637,18.80096,133.93,133.9,6.86178812]
[1763441174638,18.12096,133.92,133.9,6.86178812]
[1763441174847,18.80096,133.92,133.87,0.43]
[1763441175005,18.80096,133.92,133.9,6.86178812]
[1763441175411,0.68,133.92,133.9,6.86178812]
[1763441176709,0.68,133.95,133.91,7.56178812]
[1763441177009,0.68,133.98,133.94,6.86178812]
[1763441177210,0.68,133.98,133.96,6.86178812]
[1763441177410,0.68,134.0,133.96,6.86178812]
[1763441177610,0.68,133.99,133.96,6.86178812]
[1763441178018,0.68,133.99,133.94,0.7]
[1763441178211,18.12096,133.98,133.96,6.86178812]
[1763441178916,18.12096,133.96,133.94,6.86178812]
[1763441179104,18.12096,133.96,133.93,18.12096]
[1763441179105,7.00394969,133.96,133.93,18.12096]
[1763441179306,0.69,133.95,133.93,18.12096]
[1763441180116,0.69,133.97,133.93,6.86178812]
[1763441180317,0.69,133.96,133.93,6.86178812]
[1763441180551,18.12096,133.98,133.94,6.86178812]
[1763441180727,0.83216157,133.99,133.95,6.86178812]
[1763441180908,0.69,133.98,133.95,6.86178812]
[1763441181752,0.69,133.98,133.94,6.86178812]
[1763441182412,0.69,133.98,133.91,8.37013546]
[1763441182413,18.26312157,133.97,133.91,8.37013546]
[1763441182617,18.26312157,133.97,133.89,12.55520319]
[1763441182618,25.12490969,133.97,133.92,6.86178812]
[1763441182828,0.69,133.96,133.92,6.86178812]
[1763441183212,0.69,133.96,133.92,7.55178812]
[1763441183411,18.12096,133.95,133.93,6.86178812]
[1763441183743,0.69,133.98,133.94,6.86178812]
[1763441183917,0.69,134.01,133.97,6.86178812]
[1763441184441,18.12096,133.99,133.97,6.86178812]
[1763441184828,0.69,133.99,133.97,6.86178812]
[1763441185139,0.69,134.01,133.98,6.86178812]
[1763441185340,6.86178812,134.04,133.99,6.86178812]
[1763441185552,6.86178812,134.04,133.93,40.46499088]
[1763441185553,7.55178812,134.05,134.01,6.86178812]
[1763441185721,24.98274812,134.05,134.01,6.86178812]
[1763441185919,0.69,134.04,134.01,6.86178812]
[1763441186128,0.69,134.04,134.0,6.86178812]
[1763441186626,18.12096,134.01,133.98,6.86178812]
[1763441187013,0.69,134.0,133.97,6.86178812]
[1763441187621,0.69,134.0,133.94,8.37013546]
[1763441187622,18.12096,133.99,133.94,8.37013546]
[1763441187863,0.14216157,133.98,133.94,6.86178812]
[1763441188053,0.83216157,133.98,133.94,6.86178812]
[1763441188221,7.69394969,133.98,133.93,6.86178812]
[1763441188426,18.12096,133.95,133.92,6.86178812]
[1763441188824,18.81096,133.95,133.92,6.86178812]
[1763441189033,0.14216157,133.98,133.89,9.06013546]
[1763441189034,18.81096,133.94,133.89,9.06013546]
[1763441189354,18.81096,133.94,133.91,6.86178812]
[1763441189558,0.69,133.94,133.91,6.86178812]
[1763441190059,0.69,133.94,133.92,6.86178812]
[1763441190255,18.12096,133.94,133.93,6.86178812]
[1763441190436,18.12096,133.95,133.93,6.86178812]
[1763441190618,2.0,134.06,133.94,6.86178812]
[1763441190817,0.69,134.01,133.96,6.86178812]
[1763441191060,18.12096,133.99,133.97,6.86178812]
[1763441191230,18.12096,133.98,133.93,0.69]
[1763441191419,0.14216157,134.0,133.96,6.86178812]
[1763441191420,18.95312157,134.0,133.96,6.86178812]
[1763441191831,0.69,133.99,133.96,6.86178812]
[1763441192663,0.69,133.99,133.94,0.69]
[1763441192664,0.2,134.09,133.98,6.86178812]
[1763441192867,7.55178812,134.06,134.01,6.86178812]
[1763441193155,18.81096,134.05,133.97,8.37013546]
[1763441193348,0.69,134.07,134.03,6.86178812]
[1763441193524,0.14216157,134.07,134.03,6.86178812]
[1763441193724,0.2,134.09,134.05,6.86178812]
[1763441193926,0.89,134.09,134.06,6.86178812]
[1763441194132,18.12096,134.08,134.06,6.86178812]
[1763441194527,0.2,134.09,134.06,6.86178812]
[1763441194735,0.89,134.09,134.06,6.86178812]
[1763441194953,0.89,134.09,134.06,7.53532119]
[1763441195128,0.89,134.09,134.06,12.24491187]
[1763441195331,0.89,134.09,134.05,12.24491187]
[1763441195858,0.69,134.08,134.04,12.24491187]
[1763441196027,18.12096,134.07,134.05,12.24491187]
[1763441196549,0.69,134.06,134.03,12.24491187]
[1763441196752,0.14216157,134.08,134.04,12.24491187]
[1763441196957,13.07707344,134.08,134.01,0.69]
[1763441197260,0.14216157,134.06,134.02,12.24491187]
[1763441197445,0.83216157,134.06,134.03,12.24491187]
[1763441198060,0.83216157,134.06,134.0,0.69]
[1763441198352,0.83216157,134.06,134.03,12.24491187]
[1763441198531,0.14216157,134.04,133.98,0.69]
[1763441198843,12.24491187,134.03,133.95,18.84896315]
[1763441199025,31.19803344,134.04,133.99,12.24491187]
[1763441199232,0.69,134.03,133.99,12.24491187]
[1763441199654,0.69,134.03,133.96,0.69]
[1763441199832,12.93491187,134.03,133.98,12.24491187]
[1763441200154,0.14216157,134.02,133.98,12.24491187]
[1763441200456,0.83216157,134.02,134.0,12.24491187]
[1763441200652,0.83216157,134.02,133.99,12.24491187]
[1763441200835,0.14216157,134.03,134.0,12.24491187]
[1763441201153,0.14216157,134.03,133.99,12.24491187]
[1763441201154,0.83216157,134.03,133.99,12.24491187]
[1763441203555,0.69,134.03,134.0,12.24491187]
[1763441203755,0.69,134.03,133.99,12.24491187]
[1763441204467,0.69,134.03,133.98,12.24491187]
[1763441204468,0.14216157,134.02,133.98,12.24491187]
[1763441204831,13.08707344,134.02,133.96,0.67]
[1763441205031,0.14216157,134.0,133.94,0.67]
[1763441205240,0.14216157,134.0,133.97,12.24491187]
[1763441205649,0.14216157,134.01,133.97,12.91491187]
[1763441206000,0.84216157,134.01,133.97,12.24491187]
[1763441206171,30.36587187,134.02,133.92,27.90978769]
[1763441206172,18.12096,134.02,133.99,12.24491187]
[1763441206371,18.12096,134.02,133.98,12.24491187]
[1763441206669,0.7,134.01,133.98,12.24491187]
[1763441207255,18.12096,134.02,133.98,12.24491187]
[1763441207461,18.82096,134.02,133.98,12.24491187]
[1763441207666,18.82096,134.02,133.99,12.24491187]
[1763441208863,0.7,134.07,134.0,12.91491187]
[1763441209078,12.94491187,134.06,134.01,12.24491187]
[1763441209248,18.12096,134.03,134.01,12.91491187]
[1763441209653,0.84216157,134.05,134.02,12.24491187]
[1763441209858,15.16922597,134.04,134.02,12.24491187]
[1763441210072,0.2,134.09,133.98,9.78882769]
[1763441210073,0.2,134.09,134.03,12.91491187]
[1763441210382,0.2,134.09,134.06,12.24491187]
[1763441210667,1.04216157,134.09,134.05,12.24491187]
[1763441211044,0.7,134.08,134.04,12.24491187]
[1763441211462,0.7,134.08,134.05,12.24491187]
[1763441211964,0.7,134.08,134.05,30.36587187]
[1763441212267,0.2,134.09,134.06,12.24491187]
[1763441212471,0.9,134.09,134.06,12.24491187]
[1763441213481,0.2,134.09,134.08,12.24491187]
[1763441213767,0.2,134.09,134.07,12.24491187]
[1763441213958,0.2,134.09,134.08,12.91491187]
[1763441220554,0.2,134.09,134.06,10.45882769]
[1763441220850,0.2,134.09,134.08,12.24491187]
[1763441221071,0.2,134.09,134.08,22.70373956]
[1763441221277,0.2,134.09,134.06,10.45882769]
[1763441221491,0.2,134.09,134.06,12.24491187]
[1763441221666,0.2,134.09,134.06,12.91491187]
[1763441222497,0.2,134.09,134.06,31.03587187]
[1763441222654,0.2,134.09,134.07,12.24491187]
[1763441222849,0.2,134.09,134.08,12.24491187]
[1763441223052,0.2,134.09,134.08,31.03587187]
[1763441223854,0.2,134.09,134.07,12.24491187]
[1763441224064,0.2,134.09,134.08,12.91491187]
[1763441224358,0.9,134.09,134.04,18.12096]
[1763441224560,0.9,134.09,134.05,12.24491187]
[1763441224782,0.9,134.09,134.05,12.91491187]
[1763441225363,0.9,134.09,134.06,12.24491187]
[1763441225889,0.2,134.09,134.08,12.24491187]
[1763441226100,0.2,134.09,134.08,22.70373956]
[1763441226259,0.2,134.13,134.09,9.78882769]
[1763441226463,0.2,134.13,134.11,12.24491187]
[1763441226662,0.2,134.13,134.12,12.24491187]
[1763441227074,0.2,134.13,134.11,12.24491187]
[1763441227297,0.9,134.13,134.1,18.12096]
[1763441227599,12.38707344,134.12,134.07,12.24491187]
[1763441227756,0.84216157,134.12,134.07,12.24491187]
[1763441227963,0.7,134.11,134.07,12.24491187]
[1763441228286,12.38707344,134.1,134.02,0.67]
[1763441228487,12.38707344,134.1,134.05,12.24491187]
[1763441228666,0.14216157,134.1,134.06,12.24491187]
[1763441229082,0.84216157,134.1,134.06,12.24491187]
[1763441229961,12.94491187,134.12,134.07,12.24491187]
[1763441230166,12.94491187,134.12,134.08,12.24491187]
[1763441230167,0.14216157,134.11,134.08,12.24491187]
[1763441230367,0.7,134.12,134.1,12.24491187]
[1763441230564,0.2,134.13,134.04,27.90978769]
[1763441230565,0.7,134.11,134.04,27.90978769]
[1763441230861,0.7,134.11,134.09,12.24491187]
[1763441231485,0.7,134.11,134.08,12.24491187]
[1763441231685,0.14216157,134.1,134.07,12.24491187]
[1763441231984,0.14216157,134.1,134.08,12.24491187]
[1763441232393,0.81216157,134.1,134.08,12.24491187]
[1763441232759,0.81216157,134.1,134.09,12.24491187]
[1763441233182,0.81216157,134.1,134.08,12.24491187]
[1763441233773,0.81216157,134.1,134.04,0.7]
[1763441233986,0.81216157,134.1,134.08,12.24491187]
[1763441234675,0.81216157,134.1,134.07,12.24491187]
[1763441234876,0.81216157,134.1,134.02,9.78882769]
[1763441234877,18.12096,134.09,134.02,9.78882769]
[1763441235091,0.81216157,134.1,134.01,12.24491187]
[1763441235092,0.14216157,134.05,134.01,12.24491187]
[1763441235270,0.14216157,134.05,134.0,12.24491187]
[1763441235271,12.38707344,134.05,134.0,12.24491187]
[1763441235467,0.67,134.04,134.0,12.24491187]
[1763441237609,0.67,134.04,134.01,12.24491187]
[1763441237813,0.67,134.04,133.98,0.7]
[1763441238710,0.67,134.04,134.0,11.58512361]
[1763441238901,11.72728518,134.03,133.95,38.02343085]
[1763441239115,18.12096,134.0,133.95,0.72]
[1763441239301,0.14216157,134.0,133.96,11.58512361]
[1763441239606,0.71,133.99,133.95,37.30343085]
[1763441239810,0.85216157,134.0,133.96,0.72]
[1763441240009,0.14216157,133.98,133.95,48.88855446]
[1763441240186,0.14216157,133.98,133.94,37.67164584]
[1763441240387,0.71,133.97,133.94,49.25676945]
[1763441240684,0.71,133.96,133.92,11.58512361]
[1763441240898,0.71,133.96,133.93,11.58512361]
[1763441241296,12.43728518,133.98,133.93,11.58512361]
[1763441241506,0.71,133.97,133.92,37.74724783]
[1763441241712,0.71,133.97,133.93,11.58512361]
[1763441241905,0.71,133.97,133.91,9.78882769]
[1763441242122,0.14216157,133.99,133.94,11.58512361]
[1763441242323,0.14216157,133.99,133.92,10.50882769]
[1763441242500,18.26312157,133.99,133.94,11.58512361]
[1763441242699,12.43728518,133.99,133.93,12.30512361]
[1763441243021,0.71,133.98,133.94,11.58512361]
[1763441243428,0.71,133.98,133.94,12.30512361]
[1763441243603,0.14216157,133.99,133.95,12.30512361]
[1763441243804,0.14216157,133.99,133.96,11.58512361]
[1763441244029,18.26312157,133.99,133.96,12.30512361]
[1763441244316,18.97312157,133.99,133.95,11.58512361]
[1763441244520,18.97312157,133.99,133.94,12.30512361]
[1763441244702,0.14216157,133.97,133.9,0.41123208]
[1763441244897,11.72728518,133.97,133.92,12.30512361]
[1763441245095,0.14216157,133.97,133.92,0.72]
[1763441245292,18.12096,134.02,133.94,11.58512361]
[1763441245539,18.12096,134.02,133.91,8.61882769]
[1763441245540,0.14216157,133.98,133.91,8.61882769]
[1763441245698,0.14216157,133.98,133.9,0.41123208]
[1763441245699,12.63006178,133.97,133.9,0.41123208]
[1763441245903,12.63006178,133.97,133.83,0.2]
[1763441245904,0.14216157,133.87,133.83,0.2]
[1763441246218,0.14216157,133.87,133.81,0.1]
[1763441246219,0.10000139,133.83,133.81,0.1]
[1763441246418,2.24216296,133.83,133.81,0.1]
[1763441246621,9.78882769,133.87,133.82,37.69187944]
[1763441246622,2.0,133.87,133.82,37.69187944]
[1763441246827,2.0,133.87,133.83,11.58512361]
[1763441247030,30.4952248,133.92,133.83,11.58512361]
[1763441247031,9.00897959,133.84,133.83,11.58512361]
[1763441247238,2.0,133.83,133.81,0.1]
[1763441247452,2.0,133.84,133.81,0.1]
[1763441247657,2.0,133.86,133.81,0.1]
[1763441247831,2.0,133.85,133.81,0.1]
[1763441248032,9.00897959,133.82,133.81,0.1]
[1763441248245,18.12096,133.82,133.8,0.0579]
[1763441248630,0.14216157,133.81,133.8,0.0579]
[1763441249283,0.14216157,133.81,133.76,0.1]
[1763441249284,0.14216157,133.77,133.76,0.1]
[1763441249574,6.30622491,133.88,133.76,0.1]
[1763441249575,10.64098926,133.82,133.76,0.1]
[1763441249741,9.93098926,133.82,133.76,0.1]
[1763441250063,0.14216157,133.8,133.76,0.1]
[1763441250252,2.71,133.81,133.72,0.82]
[1763441250253,0.71,133.79,133.73,9.78882769]
[1763441250558,0.14216157,133.78,133.72,0.1]
[1763441250760,9.15114116,133.73,133.72,0.1]
[1763441251075,0.71,133.78,133.72,0.1]
[1763441251362,0.14216157,133.73,133.72,0.1]
[1763441251657,9.15114116,133.73,133.72,0.1]
[1763441251839,18.12096,133.7,133.69,0.1]
[1763441252033,18.26312157,133.71,133.69,0.1]
[1763441252234,0.85216157,133.7,133.69,0.1]
[1763441252430,9.86114116,133.7,133.69,0.1]
[1763441252859,2.14216157,133.69,133.58,10.50882769]
[1763441253028,18.26312157,133.65,133.58,9.78882769]
[1763441253227,18.26312157,133.65,133.51,38.46395795]
[1763441253228,0.14216157,133.63,133.51,37.74395795]
[1763441253432,18.12096,133.65,133.56,9.00897959]
[1763441253662,18.12096,133.65,133.52,18.98312157]
[1763441253663,0.14216157,133.62,133.52,18.98312157]
[1763441253873,0.14216157,133.62,133.53,0.72]
[1763441253874,18.26312157,133.6,133.53,0.72]
[1763441254156,0.14216157,133.64,133.53,0.72]
[1763441254560,0.71,133.65,133.59,18.12096]
[1763441254775,0.71,133.65,133.53,0.72]
[1763441254776,9.00897959,133.64,133.54,9.78882769]
[1763441254969,18.83096,133.65,133.57,5.76407428]
[1763441255173,0.85216157,133.64,133.55,18.84096]
[1763441255367,0.14216157,133.62,133.56,9.78882769]
[1763441255546,18.12096,133.57,133.51,37.74395795]
[1763441255756,0.85216157,133.61,133.51,37.74395795]
[1763441255757,0.14216157,133.54,133.51,37.74395795]
[1763441255961,2.0,133.59,133.45,0.72]
[1763441255962,0.14216157,133.51,133.45,0.72]
[1763441256160,0.14216157,133.51,133.41,0.72]
[1763441256161,5.76407428,133.48,133.41,0.72]
[1763441256391,0.14216157,133.51,133.41,0.72]
[1763441256564,0.14216157,133.51,133.4,5.76159573]
[1763441256565,2.14216157,133.51,133.4,5.76159573]
[1763441256867,2.14216157,133.51,133.39,1.93593088]
[1763441256868,5.76407428,133.46,133.41,6.48407428]
[1763441257049,5.76407428,133.46,133.39,1.93593088]
[1763441257050,0.14216157,133.49,133.4,0.72]
[1763441257250,11.52567001,133.52,133.4,0.72]
[1763441257251,0.14216157,133.48,133.4,0.72]
[1763441257475,0.14216157,133.48,133.39,1.93593088]
[1763441257675,5.76407428,133.43,133.39,1.93593088]
[1763441257848,9.78882769,133.49,133.39,1.93593088]
[1763441257849,0.14216157,133.58,133.4,0.72]
[1763441258172,0.71,133.58,133.48,18.12096]
[1763441258372,0.71,133.59,133.49,9.78882769]
[1763441258543,5.76159573,133.6,133.57,5.76407428]
[1763441258750,5.76159573,133.6,133.56,27.90978769]
[1763441259083,5.04159573,133.6,133.59,15.55290197]
[1763441259379,5.04159573,133.6,133.59,21.31697625]
[1763441259683,0.71,133.7,133.59,11.52814856]
[1763441259847,0.71,133.7,133.64,9.78882769]
[1763441260193,0.71,133.7,133.57,9.78882769]
[1763441260370,0.14216157,133.61,133.5,3.00672755]
[1763441260680,9.93098926,133.62,133.52,18.12096]
[1763441260868,0.14216157,133.6,133.52,18.12096]
[1763441261065,0.14216157,133.6,133.55,5.76407428]
[1763441261250,0.14216157,133.55,133.45,9.78882769]
[1763441261451,0.71,133.59,133.54,5.76407428]
[1763441261759,9.78882769,133.67,133.55,27.90978769]
[1763441261760,0.71,133.62,133.55,27.90978769]
[1763441261961,37.78956118,133.77,133.55,27.90978769]
[1763441261962,9.78882769,133.76,133.61,5.76407428]
[1763441262175,9.78882769,133.74,133.64,18.12096]
[1763441262357,9.78882769,133.74,133.69,5.76407428]
[1763441262358,0.69,133.74,133.69,5.76407428]
[1763441262688,0.69,133.74,133.6,5.76407428]
[1763441262689,0.69,133.73,133.65,27.90978769]
[1763441263004,0.69,133.73,133.67,5.76407428]
[1763441263169,0.69,133.73,133.68,5.76407428]
[1763441263356,18.81096,133.73,133.65,18.12096]
[1763441263706,0.69,133.73,133.65,18.12096]
[1763441263861,0.69,133.72,133.67,5.76407428]
[1763441264167,0.14216157,133.71,133.6,9.78882769]
[1763441264365,0.14216157,133.71,133.59,18.12096]
[1763441264366,0.14216157,133.64,133.59,18.12096]
[1763441264589,0.14216157,133.64,133.59,5.76407428]
[1763441264590,0.69,133.63,133.59,5.76407428]
[1763441265083,0.69,133.63,133.58,5.76407428]
[1763441265084,0.14216157,133.62,133.58,5.76407428]
[1763441265280,0.14216157,133.62,133.54,9.78882769]
[1763441265460,0.69,133.62,133.54,9.78882769]
[1763441265770,0.14216157,133.61,133.52,5.76407428]
[1763441265973,0.69,133.62,133.59,5.76407428]
[1763441266208,2.0,133.7,133.62,27.90978769]
[1763441266209,0.69,133.7,133.62,27.90978769]
[1763441266361,2.0,133.83,133.69,5.76407428]
[1763441266569,0.69,133.83,133.77,5.76407428]
[1763441266759,0.69,133.82,133.79,5.76407428]
[1763441267092,0.2,133.88,133.73,18.12096]
[1763441267093,5.76407428,133.87,133.81,5.76407428]
[1763441267276,5.76407428,133.87,133.77,9.78882769]
[1763441267277,0.69,133.87,133.77,9.78882769]
[1763441267482,0.69,133.86,133.84,5.76407428]
[1763441267778,0.2,133.88,133.8,9.78882769]
[1763441267779,0.89,133.88,133.8,9.78882769]
[1763441267956,18.81096,133.87,133.76,3.00243948]
[1763441268281,0.69,133.86,133.78,18.12096]
[1763441268469,18.12096,133.85,133.82,5.76407428]
[1763441268781,0.69,133.86,133.82,5.76407428]
[1763441268981,18.81096,133.85,133.82,5.76407428]
[1763441269183,0.2,133.88,133.83,5.76407428]
[1763441269496,0.2,133.88,133.85,5.76407428]
[1763441269677,0.89,133.88,133.85,5.76407428]
[1763441269987,0.2,133.88,133.86,5.76407428]
[1763441270196,0.2,133.88,133.87,5.76407428]
[1763441270516,35.55992914,134.01,133.91,9.78882769]
[1763441270517,0.69,134.01,133.91,9.78882769]
[1763441270659,0.69,134.01,133.99,5.76407428]
[1763441270860,18.81096,134.01,133.99,5.76407428]
[1763441271184,0.69,134.05,134.0,5.76407428]
[1763441271392,0.69,134.09,134.04,5.76407428]
[1763441271568,0.69,134.09,134.07,5.76407428]
[1763441271884,0.69,134.09,134.08,5.76407428]
[1763441272086,0.2,134.13,134.08,5.76407428]
[1763441272262,0.69,134.12,134.0,5.76407428]
[1763441272460,18.12096,134.08,134.07,5.76407428]
[1763441272660,0.69,134.12,134.07,5.76407428]
[1763441272860,0.69,134.12,134.11,5.76407428]
[1763441273261,0.69,134.12,134.04,0.14216157]
[1763441273468,0.2,134.13,134.11,5.76407428]
[1763441273676,0.2,134.14,134.12,5.76407428]
[1763441273889,0.2,134.15,134.13,5.76407428]
[1763441274076,0.2,134.19,134.15,9.78882769]
[1763441274289,0.2,134.23,134.18,23.88503428]
[1763441274460,0.2,134.23,134.22,5.76407428]
[1763441274784,0.2,134.23,134.22,9.36604048]
[1763441275667,0.1,134.33,134.26,18.12096]
[1763441275866,0.1,134.33,134.32,9.36604048]
[1763441276301,0.1,134.33,134.02,85.07751239]
[1763441276466,0.1,134.33,134.32,9.36604048]
[1763441277391,0.69,134.41,134.33,9.78882769]
[1763441277600,0.69,134.41,134.28,18.12096]
[1763441277808,0.69,134.41,134.25,9.36604048]
[1763441277809,18.12096,134.38,134.25,9.36604048]
[1763441278006,0.69,134.41,134.27,9.78882769]
[1763441278173,2.0,134.42,134.27,9.78882769]
[1763441278174,18.12096,134.35,134.27,9.78882769]
[1763441278362,9.78882769,134.39,134.34,9.36604048]
[1763441278692,18.12096,134.36,134.35,9.36604048]
[1763441279001,18.12096,134.36,134.33,9.36604048]
[1763441279002,0.14216157,134.35,134.33,9.36604048]
[1763441279186,10.62098926,134.35,134.32,9.36604048]
[1763441279397,10.62098926,134.35,134.14,0.74548978]
[1763441279689,9.78882769,134.28,134.1,47.90596962]
[1763441279893,27.90978769,134.28,134.24,9.36604048]
[1763441280069,18.12096,134.25,134.22,9.36604048]
[1763441280263,0.83216157,134.27,133.97,38.1385867]
[1763441280264,0.14216157,134.21,133.97,38.1385867]
[1763441280495,37.26263027,134.33,133.97,38.1385867]
[1763441280496,0.69,134.26,134.16,9.36604048]
[1763441280685,0.14216157,134.25,134.19,9.36604048]
[1763441280882,18.26312157,134.22,133.99,4.96]
[1763441281195,18.26312157,134.22,133.98,37.61750022]
[1763441281196,9.36604048,134.18,133.98,37.61750022]
[1763441281390,18.12096,134.18,134.1,9.36604048]
[1763441281591,0.69,134.24,134.16,9.36604048]
[1763441281779,9.36604048,134.19,133.97,0.21324235]
[1763441281967,0.14216157,134.2,134.0,37.90700953]
[1763441282190,0.14216157,134.2,133.98,5.70638005]
[1763441282191,0.69,134.22,134.17,9.36604048]
[1763441282393,10.05604048,134.25,134.19,9.36604048]
[1763441282616,27.48700048,134.2,133.97,10.00207004]
[1763441282780,9.36604048,134.13,133.97,0.21324235]
[1763441283097,9.36604048,134.12,134.06,9.36604048]
[1763441283407,10.05604048,134.16,134.1,9.36604048]
[1763441283595,18.12096,134.17,134.07,9.78882769]
[1763441283596,0.83216157,134.15,134.07,9.36604048]
[1763441283796,27.90978769,134.17,134.12,9.36604048]
[1763441283797,18.12096,134.17,134.12,9.36604048]
[1763441284109,9.36604048,134.2,134.15,9.36604048]
[1763441284403,0.69,134.25,134.19,9.36604048]
[1763441284580,10.05604048,134.25,134.14,0.14216157]
[1763441284782,10.05604048,134.25,134.2,9.36604048]
[1763441284980,0.69,134.25,134.2,9.36604048]
[1763441285188,0.69,134.25,134.21,9.36604048]
[1763441285908,0.69,134.32,134.24,9.36604048]
[1763441286090,38.08689731,134.51,134.3,9.36604048]
[1763441286091,0.69,134.39,134.3,9.36604048]
[1763441286290,9.36604048,134.38,134.32,9.36604048]
[1763441286475,9.36604048,134.35,134.3,9.36604048]
[1763441286799,9.36604048,134.35,134.26,27.90978769]
[1763441286997,0.69,134.35,134.27,9.78882769]
[1763441287499,0.69,134.35,134.15,0.14216157]
[1763441287500,9.36604048,134.32,134.15,0.14216157]
[1763441287709,10.05604048,134.35,134.25,18.12096]
[1763441287892,27.48700048,134.35,134.3,9.36604048]
[1763441288093,0.1,134.44,134.29,9.78882769]
[1763441288094,9.36604048,134.38,134.29,9.78882769]
[1763441288293,9.36604048,134.38,134.19,22.44]